[Event "Festival Groningen-A 2024"]
[Site "Groningen"]
[Date "2024.12.28"]
[Round "7.8"]
[White "De Boer, Eelke"]
[Black "Vijayakumar, Rishi"]
[Result "0-1"]
[ECO "E05"]
[WhiteElo "2426"]
[BlackElo "2204"]
[Annotator "TA"]
[PlyCount "82"]
[EventDate "2024.12.21"]
[EventType "swiss"]
[EventCountry "NED"]
[SourceTitle "playchess.com"]
[Source "ChessBase"]
[SourceQuality "1"]
[TimeControl "40/5400+30:1800+30"]

{[%evp 12,82,29,8,19,9,7,6,12,13,12,8,17,14,10,20,21,0,0,0,0,11,12,0,6,0,17,14,13,15,49,42,64,12,9,0,3,-131,-135,-163,-105,-305,-207,-327,-339,-333,-336,-379,-375,-376,-383,-420,-419,-428,-403,-384,-372,-598,-592,-708,-692,-677,-668,-691,-722,-725,-702,-844,-837,-792,-665,-625,-594]} 1. d4 {[%emt 0:00:05]} Nf6 {[%emt 0:00:45]} 2. c4 {[%emt 0:00:12]} e6 {[%emt 0:00:23]} 3. Nf3 {[%emt 0:00:23]} d5 {[%emt 0:00:22]} 4. g3 {[%emt 0:00:10]} Be7 {[%emt 0:00:43]} 5. Bg2 {[%emt 0:00:09]} O-O {[%emt 0:00:21]} 6. O-O {[%emt 0:00:09]} dxc4 {[%emt 0:00:41]} 7. Qc2 {[%emt 0:00:08]} b6 {[%emt 0:00:11]} 8. Ne5 {[%emt 0:00:13]} Qxd4 {[%emt 0:00:17]} 9. Bxa8 {[%emt 0:00:17]} Qxe5 {[%emt 0:00:07]} 10. Bf3 {[%emt 0:00:14]} Nd5 {[%emt 0:00:13]} 11. Qxc4 {[%emt 0:00:24]} Ba6 {[%emt 0:00:27]} 12. Qa4 {[%emt 0:00:09]} c5 {[%emt 0:00:12]} (12... Bxe2 $2 13. Re1 $18) 13. Na3 {[%emt 0:00:12]} Qc7 {[%emt 0:00:08]} (13... Bxe2 $2 14. Re1 $18) 14. Bf4 {[%emt 0:00:12]} Nxf4 {[%emt 0:01:44]} 15. Qxf4 {[%emt 0:00:11]} Qxf4 {[%emt 0:00:07]} 16. gxf4 {[%emt 0:00:08]} Bd6 {[%emt 0:00:04]} 17. Rfd1 {[%emt 0:00:24]} Bxf4 {[%emt 0:00:38]} 18. Nc2 {[%emt 0:00:13]} Rc8 {[%emt 0:14:08]} 19. b4 {[%emt 0:00:28]} Kf8 {[%emt 0:08:26]} 20. Rab1 {[%emt 0:00:22]} Bc4 {[%emt 0:06:10]} 21. Bb7 {[%emt 0:06:15]} Re8 {[%emt 0:22:16]} 22. bxc5 {[%emt 0:07:41]} ({White should try} 22. e3 $14 Be5 23. bxc5 Bxa2 24. Rb4 (24. Rb5 Bc4 $16) 24... bxc5 25. Rb5) 22... Bxe2 $11 {[%emt 0:01:44] This pair of bishops is nice.} 23. Rd4 {[%emt 0:29:20]} e5 {[%emt 0:03:07] [#]} 24. Rxf4 {[%emt 0:11:22]} exf4 $17 {[%emt 0:00:44]} 25. c6 {[%emt 0:00:07] and c7 would now be decisive} Ba6 {[%emt 0:11:52]} ({Black should try} 25... Na6 $19 {Hoping for ...Nc7.} 26. Nd4 f3) 26. Ba8 $2 {[%emt 0:07:54]} (26. Nd4 $17) 26... Nd7 {[%emt 0:08:49]} 27. Rd1 {[%emt 0:08:42]} (27. Nb4 {was worth a try.} Nc5 28. Nxa6 Nxa6 29. Bb7) 27... Nc5 $19 {[%emt 0:01:06]} 28. c7 {[%emt 0:00:34][%cal Oc2b4]} Ne6 {[%emt 0:01:36]} (28... Rxa8 $2 29. Rd8+ Ke7 30. Rxa8 $18) 29. Bf3 {[%emt 0:13:09]} Rc8 {[%emt 0:04:26]} ({Don't play} 29... Nxc7 30. Rd7 Re7 31. Rd8+ Ne8 32. Kg2 $19) 30. Nb4 {[%emt 0:00:26]} Bc4 {[%emt 0:00:55]} ({Worse is} 30... Nxc7 31. Nxa6 Nxa6 32. Bb7 $16) 31. Rd2 {[%emt 0:01:45]} Rxc7 {[%emt 0:00:11]} 32. h4 {[%emt 0:00:08]} a5 {[%emt 0:00:23]} 33. Nc6 {[%emt 0:00:07]} Bb5 {[%emt 0:00:44]} 34. Ne5 $2 {[%emt 0:00:20]} (34. Nd4 Bd7 35. Nxe6+ Bxe6 36. Kg2) 34... f6 {[%emt 0:00:33]} 35. Ng4 {[%emt 0:00:52]} Rc1+ {[%emt 0:01:35]} 36. Kg2 {[%emt 0:01:09]} Bf1+ {[%emt 0:01:20]} 37. Kh2 {[%emt 0:00:13]} h5 {[%emt 0:02:41]} 38. Nxf6 {[%emt 0:00:17]} gxf6 {[%emt 0:00:03]} 39. Rd6 {[%emt 0:00:09]} Ke7 {[%emt 0:00:45]} 40. Rxb6 {[%emt 0:00:06]} Rc5 {[%emt 0:00:42]} 41. Rb7+ {[%emt 0:30:22]} Nc7 {[%emt 0:31:52]} 0-1

[Event "Festival Groningen-A 2024"]
[Site "Groningen"]
[Date "2024.12.28"]
[Round "7.9"]
[White "Stijve, Theo"]
[Black "Van Rootselaar, Rik"]
[Result "1-0"]
[ECO "C11"]
[WhiteElo "2396"]
[BlackElo "2265"]
[Annotator "TA"]
[PlyCount "123"]
[EventDate "2024.12.21"]
[EventType "swiss"]
[EventCountry "NED"]
[SourceTitle "playchess.com"]
[Source "ChessBase"]
[SourceQuality "1"]
[TimeControl "40/5400+30:1800+30"]

{[%evp 18,123,4,0,7,0,0,0,15,10,18,12,12,4,8,18,26,26,23,26,16,3,25,27,29,31,91,93,93,95,76,75,141,123,128,117,109,111,150,166,157,161,135,124,116,116,214,140,194,179,168,94,113,120,141,134,193,193,191,163,220,219,205,205,189,62,60,61,61,61,62,62,72,72,72,230,223,72,79,72,154,158,906,2806,2395,1392,4844,2673,4133,2697,2085,1826,29960,29953,29961,29964,29961,29959,29970,5591,29979,29978,29978,29979,29979,29980,29988,29989]} 1. e4 {[%emt 0:00:03]} e6 {[%emt 0:13:23]} 2. d4 {[%emt 0:00:10]} d5 {[%emt 0:00:04]} 3. Nc3 {[%emt 0:00:11]} Nf6 {[%emt 0:00:07]} 4. e5 {[%emt 0:00:07]} Nfd7 {[%emt 0:00:05]} 5. f4 {[%emt 0:00:08]} c5 {[%emt 0:00:07]} 6. Nf3 {[%emt 0:00:09]} Nc6 {[%emt 0:00:06]} 7. Be3 {[%emt 0:00:10]} a6 {[%emt 0:00:25]} 8. Be2 {[%emt 0:00:42]} Be7 {[%emt 0:00:15]} 9. O-O {[%emt 0:03:30]} O-O {[%emt 0:00:13]} 10. Kh1 {[%emt 0:04:08]} Qc7 {[%emt 0:09:22]} 11. Qe1 {[%emt 0:09:07]} f6 {[%emt 0:05:17]} 12. exf6 {[%emt 0:29:27]} Bxf6 {[%emt 0:06:09]} 13. Qd2 {[%emt 0:01:33]} cxd4 {[%emt 0:04:11]} 14. Nxd4 {[%emt 0:03:03]} Nxd4 {[%emt 0:00:47]} 15. Bxd4 {[%emt 0:00:17]} Bxd4 {[%emt 0:00:10]} 16. Qxd4 {[%emt 0:00:12]} Qb6 {[%emt 0:00:34]} 17. Qxb6 {[%emt 0:08:23]} Nxb6 {[%emt 0:00:23]} 18. Bd3 {[%emt 0:00:19]} Bd7 {[%emt 0:01:42]} 19. Ne2 {[%emt 0:02:27]} Rfe8 {[%emt 0:07:55]} 20. Nd4 {[%emt 0:02:17]} Rac8 {[%emt 0:01:16]} 21. b3 {[%emt 0:03:07]} Rc3 {[%emt 0:13:38]} (21... e5 $14 22. fxe5 Rxe5) 22. Rae1 $16 {[%emt 0:01:31]} Nc8 {[%emt 0:03:16]} 23. Rf3 {[%emt 0:03:38]} Rc7 {[%emt 0:04:51]} 24. Rfe3 {[%emt 0:01:10]} Nd6 {[%emt 0:03:29]} (24... Na7 $142) 25. Nxe6 {[%emt 0:01:41]} Bxe6 {[%emt 0:00:12]} 26. Rxe6 {[%emt 0:00:07]} Rxe6 {[%emt 0:00:13]} 27. Rxe6 {[%emt 0:00:07]} Ne4 {[%emt 0:00:06]} 28. Bxe4 {[%emt 0:05:43]} dxe4 {[%emt 0:00:06]} 29. c4 {[%emt 0:00:09]} (29. Rxe4 Rxc2 30. Kg1 Rxa2 $11) 29... Rd7 {[%emt 0:00:09]} 30. h3 {[%emt 0:02:32]} (30. Rxe4 $2 Rd1+) 30... Rd4 {[%emt 0:07:32]} 31. Kg1 {[%emt 0:02:26]} Rd1+ {[%emt 0:03:22]} (31... Kf7 $16 32. Rb6 e3) 32. Kh2 {[%emt 0:00:31]} Rd4 {[%emt 0:00:25]} (32... Re1 $16 33. Rb6 Rf1) 33. Kg3 $18 {[%emt 0:02:03]} Rd3+ {[%emt 0:01:07]} 34. Kg4 {[%emt 0:02:05]} (34. Kf2 $1 $18) 34... Rd2 $16 {[%emt 0:01:34]} 35. g3 {[%emt 0:00:52]} Rxa2 {[%emt 0:02:46]} 36. Rb6 $1 {[%emt 0:05:59]} Rb2 {[%emt 0:07:53]} (36... h5+ $16 37. Kxh5 Kf8 (37... e3 38. Kg6 $16)) 37. Rxb7 $18 {[%emt 0:00:55]} a5 {[%emt 0:01:30]} 38. Rb5 {[%emt 0:01:47]} g6 {[%emt 0:02:38]} (38... Kf7 {might work better.} 39. h4 (39. Rxa5 Rxb3 40. Rf5+ Kg6 $16) 39... g6 40. Rxa5 h5+ 41. Kg5 Rxb3) 39. Rxa5 $18 {[%emt 0:03:48]} Rxb3 {[%emt 0:00:35]} 40. Re5 {[%emt 0:01:03]} Re3 {[%emt 0:01:34]} 41. Kh4 {[%emt 0:13:36]} ({Better is} 41. f5 $18) 41... Kf7 $14 {[%emt 0:01:40]} 42. g4 {[%emt 0:01:50]} h6 {[%emt 0:04:49]} 43. g5 $1 {[%emt 0:01:15]} hxg5+ {[%emt 0:01:32]} 44. fxg5 {[%emt 0:00:22]} (44. Kxg5 Rg3+ 45. Kh4 Re3 $11) 44... Re1 {[%emt 0:03:26]} 45. Kg3 {[%emt 0:03:20]} e3 {[%emt 0:05:17]} 46. Kf3 {[%emt 0:01:52]} Rc1 {[%emt 0:00:12] [#]} 47. c5 $2 {[%emt 0:01:15]} (47. Kxe3 Rxc4 48. Ra5 Rc7 $11) (47. Rc5 $1 $18 {is the precise move to win.}) 47... Rc3 $16 {[%emt 0:00:06]} 48. h4 {[%emt 0:00:21]} (48. Rxe3 Rxc5 49. h4 Rc7 $11) 48... Kf8 {[%emt 0:04:18]} ({Black should try} 48... Kg7 49. Ke4 (49. Rxe3 Rxc5 50. Re4 Ra5 $14) 49... e2) 49. Re6 $16 {[%emt 0:08:07]} (49. Rxe3 Rxc5 50. Ra3 Rc8 $11) 49... Kf7 $2 {[%emt 0:03:38] [#]} (49... Rxc5 $16 50. Rxg6 (50. Rxe3 Ra5 $11) 50... Re5) 50. Rf6+ $1 $18 {[%emt 0:00:08]} (50. Rxe3 Rxc5 51. Re4 Rc7 $11) 50... Kg7 {[%emt 0:00:24]} 51. c6 {[%emt 0:00:08]} Rd3 {[%emt 0:07:03]} 52. Re6 {[%emt 0:02:32]} Rc3 {[%emt 0:00:11]} 53. Rd6 {[%emt 0:00:53]} ({Stronger than} 53. Rxe3 Rxc6 54. Re7+ Kf8 $11) 53... Kf7 {[%emt 0:00:55]} 54. Ke2 {[%emt 0:00:14]} Rc4 {[%emt 0:02:14]} 55. Kxe3 {[%emt 0:00:26]} Rxh4 {[%emt 0:00:05]} 56. Kd3 {[%emt 0:01:05]} Rh1 {[%emt 0:00:21]} 57. Kc4 {[%emt 0:01:21]} Rg1 {[%emt 0:00:05]} 58. Rf6+ {[%emt 0:01:21]} (58. Rd3 $142 Rc1+ 59. Rc3 Rxc3+ 60. Kxc3 Ke7 61. c7 Kd7 62. Kd4 Kxc7 63. Ke5) 58... Kg7 {[%emt 0:01:32]} 59. Rf3 {[%emt 0:00:23]} Rg4+ {[%emt 0:00:05]} 60. Kb3 {[%emt 0:01:24]} Rxg5 {[%emt 0:00:04]} 61. c7 {[%emt 0:00:06]} Rb5+ {[%emt 0:00:51]} 62. Kc4 {[%emt 0:00:44]} 1-0

[Event "Festival Groningen-A 2024"]
[Site "Groningen"]
[Date "2024.12.28"]
[Round "7.10"]
[White "Cernov, Henrik"]
[Black "Slagboom, Leandro"]
[Result "1-0"]
[ECO "C07"]
[WhiteElo "2187"]
[BlackElo "2370"]
[Annotator "TA"]
[PlyCount "61"]
[EventDate "2024.12.21"]
[EventType "swiss"]
[EventCountry "NED"]
[SourceTitle "playchess.com"]
[Source "ChessBase"]
[SourceQuality "1"]
[TimeControl "40/5400+30:1800+30"]

{[%evp 23,61,7,8,-22,0,-17,-14,-21,0,-17,-12,0,-20,-18,-9,-11,0,-9,66,-4,-11,-16,-33,-34,-47,-38,-16,-30,47,41,382,396,403,309,456,455,652,602,29997,245]} 1. e4 {[%emt 0:00:01]} e6 {[%emt 0:00:08]} 2. d4 {[%emt 0:00:05]} d5 {[%emt 0:00:05]} 3. Nd2 {[%emt 0:00:02]} c5 {[%emt 0:00:22]} 4. Ngf3 {[%emt 0:00:11]} cxd4 {[%emt 0:00:09]} 5. Nxd4 {[%emt 0:00:27]} Nc6 {[%emt 0:00:07]} 6. Bb5 {[%emt 0:00:08]} Bd7 {[%emt 0:00:07]} 7. Nxc6 {[%emt 0:00:06]} bxc6 {[%emt 0:00:06]} 8. Bd3 {[%emt 0:00:03]} Qc7 {[%emt 0:00:31]} 9. Qe2 {[%emt 0:00:24] C07: French Tarrasch: 3...c5, 4 Ngf3 and 4 exd5 Qxd5.} Ne7 {[%emt 0:00:24]} 10. b3 {[%emt 0:00:09]} Ng6 {[%emt 0:00:30]} 11. g3 {[%emt 0:00:16]} Bb4 {[%emt 0:00:09]} 12. Bb2 {[%emt 0:01:04]} O-O {[%emt 0:01:17]} 13. O-O-O {[%emt 0:02:38]} c5 {[%emt 0:06:35]} 14. f4 $146 {[%emt 0:04:55]} ({Predecessor:} 14. a3 Bxd2+ 15. Qxd2 d4 16. f4 Rab8 17. h4 Ne7 18. h5 h6 19. g4 Bb5 20. Bxb5 Rxb5 {1-0 Quesada Perez,Y (2581)-Hevia Alejano,C (2414) San Jose 1000 GM Labor Day op 2024 (5)}) 14... c4 {[%emt 0:31:55]} 15. bxc4 {[%emt 0:01:00]} Rfe8 {[%emt 0:01:05]} 16. h4 {[%emt 0:06:37]} Rab8 {[%emt 0:03:04]} 17. h5 {[%emt 0:05:49]} (17. exd5 exd5 18. Qh2 Ne7 $17) 17... Nf8 {[%emt 0:01:17]} 18. h6 {[%emt 0:09:05]} (18. exd5 $2 exd5 19. Qg2 Bxd2+ 20. Qxd2 Rxb2 (20... dxc4 $2 21. Bxh7+ Kxh7 22. h6 $19) 21. Kxb2 dxc4 22. Bxh7+ Kxh7 $19) 18... g6 {[%emt 0:00:44]} 19. Nb3 {[%emt 0:01:13]} (19. cxd5 exd5 20. Qe3 Bc5 $19) 19... a5 {[%emt 0:07:14]} 20. a3 {[%emt 0:10:34]} (20. cxd5 a4 21. Bc4 exd5 (21... axb3 22. axb3 exd5 23. Rxd5 $15) 22. Bxd5 axb3 23. axb3 Be6 $15) 20... Bd6 {[%emt 0:06:19]} (20... Be7 $11 21. Qe1 (21. exd5 a4 $11) 21... a4 (21... dxc4 22. Qc3 $11)) 21. Qd2 {[%emt 0:06:45]} (21. exd5 $14 a4 22. c5 exd5 23. cxd6 Qxd6 24. Qf2 (24. Be5 Qxa3+ 25. Bb2 Qb4 $11) 24... axb3 25. Qd4) 21... a4 $11 {[%emt 0:11:53]} 22. Qc3 {[%emt 0:14:53]} (22. c5 $5 Be7 23. exd5 exd5 24. Qc3 $14 (24. Be5 Qa7 $11)) 22... e5 {[%emt 0:01:51]} 23. c5 {[%emt 0:01:04]} axb3 {[%emt 0:14:29]} 24. cxd6 {[%emt 0:00:13]} Qb6 {[%emt 0:04:15]} 25. exd5 {[%emt 0:13:51]} (25. fxe5 $2 bxc2 26. Rde1 (26. Kxc2 $2 Rec8 $19) 26... Ne6 27. exd5 Nc5 $19) 25... bxc2 {[%emt 0:01:12]} (25... Rbc8 $1 $11 26. Qb4 Qxb4 27. axb4 e4) 26. Rde1 $1 $14 {[%emt 0:00:37]} (26. fxe5 $2 cxd1=Q+ (26... cxd1=R+ $2 27. Rxd1 Rec8 28. Kd2 $19) (26... cxd1=B $2 27. Qd4 $19) 27. Kxd1 Rec8 $19 (27... Qxb2 $2 28. Qxb2 Rxb2 29. Re1 $19)) (26. Bxc2 $2 Rbc8 27. Qb4 Qe3+ 28. Kb1 Rxc2 $19 (28... Qxg3 29. fxe5 Rxc2 30. e6 $16)) (26. Kxc2 $2 Rec8 (26... Qxd6 27. Kb1 $11) 27. Kd2 Rxc3 (27... Qxb2+ $2 28. Qxb2 Rxb2+ 29. Ke3 $19) 28. Bxc3 Qf2+ (28... Qxd6 $2 29. Bxe5 Qxd5 30. Bxb8 $19) 29. Be2 exf4 30. gxf4 Qxf4+ 31. Ke1 Re8 $19 (31... Qxd6 $2 32. Bd4 $19)) 26... Qf2 $2 {[%emt 0:06:31][%mdl 8192]} (26... Bb5 $1 $14 27. Bxc2 Rbc8) 27. fxe5 $18 {[%emt 0:04:54]} (27. Rhf1 Qxg3 28. Rxe5 (28. Qxc2 $2 Rec8 $19) (28. fxe5 $2 Qg5+ 29. Qd2 Qxd2+ 30. Kxd2 Rxb2 $19) 28... Rec8 $18) 27... Qxg3 {[%emt 0:00:06]} 28. Bxc2 {[%emt 0:03:04]} (28. Kxc2 $2 {too greedy.} Rec8 29. e6 Rxc3+ 30. Bxc3 fxe6 $19) ({Weaker is} 28. e6 Qf4+ 29. Qd2 (29. Kxc2 Rbc8 $11) 29... Qxd2+ 30. Kxd2 c1=B+ 31. Kxc1 (31. Rxc1 Rxb2+ 32. Kc3 Rb6 $18) 31... fxe6 $18) 28... Qg5+ {[%emt 0:01:21] [#]} (28... Qxc3 $142 29. Bxc3 Rb5) 29. Qe3 $1 $18 {[%emt 0:01:25]} Qg2 {[%emt 0:00:01]} (29... Qxe3+ $142 30. Rxe3 Rb5) 30. e6 $18 {[%emt 0:07:08]} Rec8 {[%emt 0:00:05]} 31. exf7+ {[%emt 0:00:14]} 1-0

[Event "Festival Groningen-A 2024"]
[Site "Groningen"]
[Date "2024.12.28"]
[Round "7.11"]
[White "Smeets, Kobe"]
[Black "Ritzerveld, Noah"]
[Result "1-0"]
[ECO "C77"]
[WhiteElo "2349"]
[BlackElo "2182"]
[Annotator "TA"]
[PlyCount "113"]
[EventDate "2024.12.21"]
[EventType "swiss"]
[EventCountry "NED"]
[SourceTitle "playchess.com"]
[Source "ChessBase"]
[SourceQuality "1"]
[TimeControl "40/5400+30:1800+30"]

{[%evp 20,113,22,14,27,26,35,25,34,30,97,62,91,59,60,27,109,46,39,39,83,85,92,31,20,12,25,-106,-106,-145,-150,-232,-230,-329,-257,-228,-46,-51,-31,-36,-38,-32,-35,-45,-55,-25,-62,-134,-59,-65,-56,-41,35,21,31,0,17,0,17,33,333,340,522,517,575,484,588,576,724,710,659,574,722,719,938,903,989,744,873,697,666,628,5812,3458,29977,1112,1400,902,29985,29986,29993,29994,29994,29995,29998,29999]} 1. e4 {[%emt 0:00:02]} e5 {[%emt 0:00:09]} 2. Nf3 {[%emt 0:00:08]} Nc6 {[%emt 0:00:09]} 3. Bb5 {[%emt 0:00:09]} a6 {[%emt 0:00:07]} 4. Ba4 {[%emt 0:00:05]} Nf6 {[%emt 0:00:07]} 5. O-O {[%emt 0:00:08]} Be7 {[%emt 0:00:08]} 6. d3 {[%emt 0:00:09]} b5 {[%emt 0:00:46]} 7. Bb3 {[%emt 0:00:07]} d6 {[%emt 0:00:12]} 8. a3 {[%emt 0:00:06]} O-O {[%emt 0:01:47]} 9. Nc3 {[%emt 0:00:08]} Na5 {[%emt 0:04:43]} 10. Ba2 {[%emt 0:00:08]} c5 {[%emt 0:02:45]} 11. b4 {[%emt 0:00:06]} Nc6 {[%emt 0:04:24]} 12. Nd5 {[%emt 0:00:12]} Be6 {[%emt 0:03:47]} 13. c3 {[%emt 0:08:54]} cxb4 {[%emt 0:10:22]} 14. axb4 {[%emt 0:00:45]} Nd7 {[%emt 0:03:54]} (14... a5 $11) 15. d4 {[%emt 0:05:13]} Bg4 {[%emt 0:03:37]} 16. Nxe7+ {[%emt 0:10:56]} Nxe7 {[%emt 0:01:47]} 17. Qd3 {[%emt 0:01:27]} Qc7 {[%emt 0:02:11]} (17... Bxf3 $11 {keeps the balance.} 18. Qxf3 a5) 18. Bd2 {[%emt 0:03:03]} ({Better is} 18. Ng5 $16) 18... Nb6 $14 {[%emt 0:02:52]} 19. Ng5 {[%emt 0:11:36]} (19. Nh4 Nc4 20. Bxc4 bxc4 21. Qg3) 19... h6 {[%emt 0:12:21]} 20. Qg3 $1 {[%emt 0:01:24]} Be2 {[%emt 0:03:20] [#]} 21. dxe5 {[%emt 0:10:52]} (21. Ne6 $1 $16 fxe6 22. Bxh6) 21... dxe5 $14 {[%emt 0:03:43]} 22. Nf3 {[%emt 0:02:45]} Qd6 {[%emt 0:08:12] [#]} (22... Nc4 {simplifies} 23. Bxc4 bxc4 24. Rfc1 Bxf3 25. Qxf3 a5) 23. Be3 {[%emt 0:06:54]} (23. Qxe5 $1 $11 Qxe5 24. Nxe5) 23... Bxf1 $17 {[%emt 0:01:07]} 24. Rxf1 {[%emt 0:00:55]} Nd7 {[%emt 0:03:05]} 25. Bd4 {[%emt 0:02:07]} (25. Bb3 $17 Rad8 26. Rd1) 25... Ng6 $19 {[%emt 0:01:44]} 26. Re1 {[%emt 0:10:16]} (26. Nxe5 {might work better.} Ndxe5 27. f4) 26... Qf6 {[%emt 0:01:30]} 27. Be3 {[%emt 0:01:22]} Kh7 $2 {[%emt 0:01:44]} (27... Rac8 $19 28. Qg4 Nb6) 28. Qh3 $15 {[%emt 0:02:33]} Nb6 {[%emt 0:02:47]} 29. Bc5 $1 {[%emt 0:02:43]} Rfb8 {[%emt 0:05:50]} 30. Bxf7 {[%emt 0:11:34]} Nf4 {[%emt 0:00:15]} 31. Qf5+ {[%emt 0:08:18]} Qxf5 {[%emt 0:00:44]} 32. exf5 {[%emt 0:00:01]} Nd3 {[%emt 0:00:54]} 33. Re4 {[%emt 0:00:57] [#]} (33. Re3 $15 Nxc5 34. Ng5+ (34. bxc5 Nc4 $11) 34... Kh8 35. bxc5) 33... Ra7 {[%emt 0:08:24]} ({Black should try} 33... a5 $1 $17 {[%cal Ra5b4] Strongly threatening ...axb4.} 34. g3 Nc4) 34. Bg6+ $15 {[%emt 0:00:25]} Kg8 {[%emt 0:00:27]} 35. Nxe5 {[%emt 0:00:19]} Nxe5 {[%emt 0:02:42]} (35... Nxc5 $15 36. bxc5 Na4) 36. Rxe5 $14 {[%emt 0:00:05]} Rd7 {[%emt 0:00:13]} 37. g4 {[%emt 0:01:10]} Nd5 {[%emt 0:00:32]} 38. Bd4 {[%emt 0:00:50]} Nf4 {[%emt 0:01:00]} 39. h4 {[%emt 0:00:16]} Nxg6 $4 {[%emt 0:01:45][%mdl 8192]} (39... a5 $1 $14) 40. fxg6 $18 {[%emt 0:00:01]} Rbd8 {[%emt 0:03:45]} (40... a5 $142) 41. h5 $18 {[%emt 0:02:11]} Rb8 {[%emt 0:02:58]} 42. Kg2 {[%emt 0:09:20]} Rbd8 {[%emt 0:01:13]} 43. Kg3 {[%emt 0:01:30]} Kf8 {[%emt 0:00:46]} 44. Re6 {[%emt 0:00:39]} Ra8 {[%emt 0:02:19]} 45. f4 {[%emt 0:00:07]} Kg8 {[%emt 0:00:41]} 46. g5 {[%emt 0:02:19]} hxg5 {[%emt 0:00:18]} 47. fxg5 {[%emt 0:00:01]} a5 {[%emt 0:00:17]} 48. bxa5 {[%emt 0:05:56]} b4 {[%emt 0:00:07]} 49. Rc6 {[%emt 0:00:50]} Rb8 {[%emt 0:03:24]} 50. Be5 {[%emt 0:00:13]} Rd3+ {[%emt 0:01:21]} 51. Kg4 {[%emt 0:00:09]} Re8 {[%emt 0:00:33] [#]} 52. cxb4 {[%emt 0:00:10]} (52. Rc7 $142 $1 Re3 53. Rxg7+ Kf8 54. Bf6 R3e4+ 55. Kf5 Re2 56. h6 (56. cxb4 Rf2+ 57. Kg4 Re4+ 58. Kg3 Ref4 $18) 56... Rf2+ 57. Kg4) 52... Rb3 {[%emt 0:00:28]} 53. Rc4 {[%emt 0:01:32]} Rd8 {[%emt 0:00:37]} 54. h6 {[%emt 0:00:18]} Rf8 {[%emt 0:00:39]} 55. Rc7 {[%emt 0:01:14]} ({Inferior is} 55. Bxg7 Rg3+ 56. Kh5 (56. Kxg3 Rf3+ 57. Kh2 Rf2+ 58. Kg3 Rf3+ 59. Kh2 Rf2+ 60. Kg3 Rf3+ $11) 56... Rh3+ 57. Rh4 (57. Kg4 Rg3+ 58. Kh5 Rh3+ 59. Rh4 Rxh4+ 60. Kxh4 Rf4+ 61. Kg3 Rf3+ 62. Kh4 Rf4+ 63. Kh3 Rf3+ 64. Kg2 Rf2+ 65. Kh3 Rf3+ 66. Kg4 Rf4+ 67. Kh3 Rf3+ $11) 57... Rxh4+ 58. Kxh4 Rf4+ 59. Kh3 Rf3+ 60. Kg4 Rf4+ 61. Kh3 Rf3+ 62. Kh4 Rf4+ 63. Kg3 Rf3+ 64. Kh4 Rf4+ $11) 55... Rxb4+ {[%emt 0:00:14]} 56. Kh5 {[%emt 0:00:07]} Rf1 {[%emt 0:00:13]} 57. h7+ {[%emt 0:00:11]} 1-0